fUSD/lending_fUSD_20260617
["ID","MTS","AMOUNT","RATE_DAILY","PERIOD"]
[425314363,1781694653000,-151.0,0.00024,7]
[425314344,1781694653000,-151.0,0.00024,7]
[425314326,1781694653000,-151.0,0.00024,7]
[425314345,1781694653000,-151.0,0.00024,7]
[425314324,1781694653000,-151.0,0.00024,7]
[425314322,1781694653000,-151.0,0.00024,7]
[425314323,1781694653000,-151.0,0.00024,7]
[425314318,1781694653000,-151.0,0.00024,7]
[425314319,1781694653000,-151.0,0.00024,7]
[425314320,1781694653000,-151.0,0.00024,7]
[425314321,1781694653000,-151.0,0.00024,7]
[425314325,1781694653000,-151.0,0.00024,7]
[425314327,1781694653000,-151.0,0.00024,7]
[425314381,1781694653000,-151.0,0.00024,7]
[425314328,1781694653000,-151.0,0.00024,7]
[425314332,1781694653000,-151.0,0.00024,7]
[425314335,1781694653000,-151.0,0.00024,7]
[425314329,1781694653000,-151.0,0.00024,7]
[425314334,1781694653000,-151.0,0.00024,7]
[425314331,1781694653000,-151.0,0.00024,7]
[425314333,1781694653000,-151.0,0.00024,7]
[425314330,1781694653000,-151.0,0.00024,7]
[425314336,1781694653000,-151.0,0.00024,7]
[425314337,1781694653000,-151.0,0.00024,7]
[425314342,1781694653000,-151.0,0.00024,7]
[425314346,1781694653000,-151.0,0.00024,7]
[425314347,1781694653000,-151.0,0.00024,7]
[425314343,1781694653000,-151.0,0.00024,7]
[425314341,1781694653000,-151.0,0.00024,7]
[425314340,1781694653000,-151.0,0.00024,7]
[425314338,1781694653000,-151.0,0.00024,7]
[425314339,1781694653000,-151.0,0.00024,7]
[425314378,1781694653000,-151.0,0.00024,7]
[425314364,1781694653000,-151.0,0.00024,7]
[425314376,1781694653000,-151.0,0.00024,7]
[425314411,1781694653000,-419.0,0.00024847,2]
[425314418,1781694653000,-150.0,0.00025,14]
[425314417,1781694653000,-271.0,0.00025,2]
[425314419,1781694653000,-503.0,0.00025,8]
[425314420,1781694653000,-175.99,0.00025,2]
[425314410,1781694653000,-1943.3,0.000248,7]
[425314413,1781694653000,-492.0,0.00025,2]
[425314412,1781694653000,-6079.0,0.00024847,2]
[425314414,1781694653000,-11328.24615356,0.00025,2]
[425314415,1781694653000,-544.0,0.00025,2]
[425314416,1781694653000,-242.0,0.00025,2]
[425314421,1781694653000,-175.99,0.00025,2]
[425314428,1781694653000,-188.98085337,0.00025712,2]
[425314431,1781694653000,-150.067,0.00025775,2]
[425314430,1781694653000,-207.51,0.00025765,2]
[425314422,1781694653000,-175.99,0.00025,2]
[425314429,1781694653000,-150.0,0.00025735,2]
[425314432,1781694653000,-150.0,0.00025775,2]
[425314423,1781694653000,-175.99,0.00025,2]
[425314424,1781694653000,-175.99,0.00025,2]
[425314427,1781694653000,-150.0,0.00025373,2]
[425314426,1781694653000,-500.0,0.00025288,2]
[425314425,1781694653000,-841.0,0.00025029,10]
[425314433,1781694653000,-3558.0,0.00025775,2]
[425314434,1781694653000,-383.0,0.00025775,2]
[425314435,1781694653000,-1359.0,0.00025775,2]
[425314375,1781694653000,-151.0,0.00024,7]
[425314409,1781694653000,-167.49,0.00024658,2]
[425314406,1781694653000,-329.3,0.00024324,2]
[425314436,1781694653000,-2165.73,0.00025786,2]
[425314404,1781694653000,-373.46186693,0.00024233,2]
[425314377,1781694653000,-151.0,0.00024,7]
[425314383,1781694653000,-151.0,0.00024,7]
[425314379,1781694653000,-151.0,0.00024,7]
[425314373,1781694653000,-151.0,0.00024,7]
[425314382,1781694653000,-151.0,0.00024,7]
[425314384,1781694653000,-151.0,0.00024,7]
[425314385,1781694653000,-151.0,0.00024,7]
[425314403,1781694653000,-922.71,0.00024231,2]
[425314386,1781694653000,-151.0,0.00024,7]
[425314387,1781694653000,-151.0,0.00024,7]
[425314388,1781694653000,-151.0,0.00024,7]
[425314395,1781694653000,-151.0,0.00024,7]
[425314392,1781694653000,-151.0,0.00024,7]
[425314394,1781694653000,-151.0,0.00024,7]
[425314389,1781694653000,-151.0,0.00024,7]
[425314393,1781694653000,-151.0,0.00024,7]
[425314405,1781694653000,-1122.61433308,0.00024233,2]
[425314401,1781694653000,-568.74,0.00024174,2]
[425314402,1781694653000,-14973.82,0.00024174,2]
[425314400,1781694653000,-2165.73,0.00024174,2]
[425314397,1781694653000,-383.42,0.00024096,2]
[425314407,1781694653000,-500.0,0.00024551,2]
[425314408,1781694653000,-1000.0,0.00024658,2]
[425314398,1781694653000,-651.12,0.0002411,2]
[425314396,1781694653000,-151.0,0.00024,7]
[425314391,1781694653000,-151.0,0.00024,7]
[425314390,1781694653000,-151.0,0.00024,7]
[425314399,1781694653000,-150.0,0.00024164,2]
[425314478,1781694654000,-500.0,0.0002704,2]
[425314479,1781694654000,-151.0,0.0002704,2]
[425314474,1781694654000,-174.61919141,0.0002704,2]
[425314477,1781694654000,-151.0,0.0002704,2]
[425314480,1781694654000,-203.56087746,0.0002704,2]
[425314471,1781694654000,-1030.0,0.0002704,2]
[425314472,1781694654000,-156.80870372,0.0002704,2]
[425314470,1781694654000,-181.92376397,0.00027005,7]
[425314469,1781694654000,-155.64273807,0.00027005,2]
[425314465,1781694654000,-172.40266716,0.00027005,7]
[425314473,1781694654000,-663.5190383,0.0002704,2]
[425314476,1781694654000,-500.0,0.0002704,2]
[425314493,1781694654000,-152.0,0.0002704,2]
[425314481,1781694654000,-152.0,0.0002704,2]
[425314483,1781694654000,-500.0,0.0002704,2]
[425314486,1781694654000,-152.0,0.0002704,2]
[425314484,1781694654000,-152.0,0.0002704,2]
[425314482,1781694654000,-500.0,0.0002704,2]
[425314488,1781694654000,-152.0,0.0002704,2]
[425314490,1781694654000,-500.0,0.0002704,2]
[425314492,1781694654000,-500.0,0.0002704,2]
[425314489,1781694654000,-500.0,0.0002704,2]
[425314487,1781694654000,-500.0,0.0002704,2]
[425314491,1781694654000,-152.0,0.0002704,2]
[425314485,1781694654000,-500.0,0.0002704,2]
[425314462,1781694654000,-173.36098693,0.00027004,7]
[425314475,1781694654000,-500.0,0.0002704,2]
[425314468,1781694654000,-184.00672379,0.00027005,7]
[425314454,1781694654000,-150.0,0.00026641,2]
[425314466,1781694654000,-173.66241701,0.00027005,7]
[425314494,1781694654000,-500.0,0.0002704,2]
[425314444,1781694654000,-465.08,0.00026027,7]
[425314445,1781694654000,-5012.72868597,0.00026112,2]
[425314443,1781694654000,-503.0,0.00026,9]
[425314440,1781694654000,-1122.61433308,0.00025789,2]
[425314441,1781694654000,-167.52,0.00025812,120]
[425314438,1781694654000,-14973.82,0.00025786,2]
[425314439,1781694654000,-373.46186693,0.00025789,2]
[425314442,1781694654000,-152.62033986,0.0002588,2]
[425314446,1781694654000,-5000.0,0.00026112,2]
[425314448,1781694654000,-5000.0,0.00026112,2]
[425314447,1781694654000,-5000.0,0.00026112,2]
[425314463,1781694654000,-158.97417418,0.00027004,7]
[425314449,1781694654000,-5000.0,0.00026112,2]
[425314451,1781694654000,-152.0,0.00026311,3]
[425314452,1781694654000,-224.23,0.00026335,2]
[425314453,1781694654000,-270.24464411,0.0002643,120]
[425314456,1781694654000,-1943.3,0.000267,7]
[425314455,1781694654000,-2000.0,0.00026667,7]
[425314457,1781694654000,-477.33,0.00026814,2]
[425314459,1781694654000,-503.0,0.00027,10]
[425314458,1781694654000,-154.645292,0.00026946,3]
[425314460,1781694654000,-172.06734711,0.00027004,7]
[425314461,1781694654000,-164.58862223,0.00027004,7]
[425314467,1781694654000,-176.9837924,0.00027005,7]
[425314464,1781694654000,-173.28246566,0.00027004,7]
[425314450,1781694654000,-329.3,0.00026296,2]
[425314496,1781694654000,-500.0,0.0002704,2]
[425314437,1781694654000,-568.74,0.00025786,2]
[425314495,1781694654000,-152.0,0.0002704,2]
[425314529,1781694654000,-1281.0,0.00027408,5]
[425314540,1781694654000,-5308.13,0.0002755,30]
[425314541,1781694654000,-385.82,0.0002755,2]
[425314531,1781694654000,-151.0,0.0002748,2]
[425314538,1781694654000,-1599.63,0.0002755,30]
[425314530,1781694654000,-151.0,0.00027425,2]
[425314533,1781694654000,-500.0,0.000275,7]
[425314537,1781694654000,-796.34,0.0002755,30]
[425314534,1781694654000,-151.0,0.00027535,2]
[425314539,1781694654000,-5945.57,0.0002755,30]
[425314535,1781694654000,-1823.98,0.0002755,30]
[425314532,1781694654000,-1204.0,0.000275,7]
[425314522,1781694654000,-299.85582701,0.00027397,2]
[425314536,1781694654000,-395.06,0.0002755,2]
[425314545,1781694654000,-151.0,0.0002759,2]
[425314548,1781694654000,-395.06,0.00027641,2]
[425314544,1781694654000,-181.08010149,0.00027588,2]
[425314551,1781694654000,-608.48572056,0.00027656,2]
[425314552,1781694654000,-395.06,0.00027672,7]
[425314553,1781694654000,-385.82,0.00027672,7]
[425314550,1781694654000,-151.0,0.00027645,2]
[425314549,1781694654000,-385.82,0.00027641,2]
[425314543,1781694654000,-385.82,0.0002758,7]
[425314547,1781694654000,-385.82,0.00027611,30]
[425314546,1781694654000,-395.06,0.00027611,30]
[425314554,1781694654000,-151.0,0.000277,2]
[425314542,1781694654000,-395.06,0.0002758,7]
[425314519,1781694654000,-500.0,0.00027397,2]
[425314497,1781694654000,-152.0,0.0002704,2]
[425314524,1781694654000,-501.47400689,0.00027397,2]
[425314499,1781694654000,-152.0,0.0002704,2]
[425314502,1781694654000,-152.0,0.0002704,2]
[425314498,1781694654000,-500.0,0.0002704,2]
[425314501,1781694654000,-152.0,0.0002704,2]
[425314504,1781694654000,-646.65982734,0.0002704,2]
[425314500,1781694654000,-152.0,0.0002704,2]
[425314503,1781694654000,-578.20924308,0.0002704,2]
[425314526,1781694654000,-18578.21,0.00027397,10]
[425314506,1781694654000,-151.0,0.00027095,2]
[425314507,1781694654000,-156.80870372,0.0002715,2]
[425314508,1781694654000,-151.0,0.0002715,2]
[425314509,1781694654000,-156.80870379,0.00027205,2]
[425314510,1781694654000,-151.0,0.00027205,2]
[425314505,1781694654000,-156.80870372,0.00027095,2]
[425314512,1781694654000,-151.0,0.00027315,2]
[425314511,1781694654000,-151.0,0.0002726,2]
[425314528,1781694654000,-220.08623448,0.00027397,7]
[425314525,1781694654000,-154.77518102,0.00027397,7]
[425314523,1781694654000,-1500.0,0.00027397,2]
[425314520,1781694654000,-500.0,0.00027397,2]
[425314521,1781694654000,-540.57990238,0.00027397,2]
[425314527,1781694654000,-15481.84,0.00027397,10]
[425314517,1781694654000,-500.0,0.00027397,2]
[425314514,1781694654000,-1122.61433308,0.00027344,2]
[425314513,1781694654000,-373.46186693,0.00027344,2]
[425314515,1781694654000,-151.0,0.0002737,2]
[425314516,1781694654000,-500.0,0.00027397,2]
[425314518,1781694654000,-500.0,0.00027397,2]
[425314595,1781694655000,-160.0,0.00028,30]
[425314599,1781694655000,-1823.98,0.00028033,30]
[425314594,1781694655000,-503.0,0.00028,11]
[425314590,1781694655000,-395.06,0.00027977,30]
[425314598,1781694655000,-795.86,0.00028033,30]
[425314588,1781694655000,-385.82,0.00027946,7]
[425314589,1781694655000,-150.0,0.00027973,2]
[425314586,1781694655000,-385.82,0.00027916,2]
[425314584,1781694655000,-385.82,0.00027885,30]
[425314585,1781694655000,-395.06,0.00027916,2]
[425314591,1781694655000,-385.82,0.00027977,30]
[425314596,1781694655000,-395.06,0.00028007,2]
[425314608,1781694655000,-395.06,0.00028099,2]
[425314592,1781694655000,-216.17170803,0.00028,30]
[425314597,1781694655000,-385.82,0.00028007,2]
[425314601,1781694655000,-1599.63,0.00028033,30]
[425314602,1781694655000,-5945.57,0.00028033,30]
[425314604,1781694655000,-395.06,0.00028038,7]
[425314600,1781694655000,-796.34,0.00028033,30]
[425314611,1781694655000,-385.93,0.0002813,7]
[425314603,1781694655000,-5308.13,0.00028033,30]
[425314605,1781694655000,-385.82,0.00028038,7]
[425314606,1781694655000,-395.06,0.00028068,30]
[425314609,1781694655000,-385.82,0.00028099,2]
[425314607,1781694655000,-385.82,0.00028068,30]
[425314587,1781694655000,-395.06,0.00027946,7]
[425314593,1781694655000,-216.17170803,0.00028,10]
[425314577,1781694655000,-1599.63,0.00027872,2]
[425314566,1781694655000,-385.82,0.00027763,7]
[425314582,1781694655000,-150.0,0.00027877,7]
[425314610,1781694655000,-395.19,0.0002813,7]
[425314564,1781694655000,-385.82,0.00027733,2]
[425314556,1781694655000,-385.82,0.00027702,30]
[425314557,1781694655000,-795.86,0.00027711,7]
[425314560,1781694655000,-1599.63,0.00027711,7]
[425314558,1781694655000,-1823.98,0.00027711,7]
[425314555,1781694655000,-395.06,0.00027702,30]
[425314563,1781694655000,-395.06,0.00027733,2]
[425314561,1781694655000,-5945.57,0.00027711,7]
[425314562,1781694655000,-5308.13,0.00027711,7]
[425314559,1781694655000,-796.34,0.00027711,7]
[425314565,1781694655000,-395.06,0.00027763,7]
[425314583,1781694655000,-395.06,0.00027885,30]
[425314575,1781694655000,-1823.98,0.00027872,2]
[425314568,1781694655000,-385.82,0.00027794,30]
[425314576,1781694655000,-796.34,0.00027872,2]
[425314571,1781694655000,-6079.0,0.00027847,2]
[425314567,1781694655000,-395.06,0.00027794,30]
[425314573,1781694655000,-385.82,0.00027855,7]
[425314574,1781694655000,-795.86,0.00027872,2]
[425314569,1781694655000,-395.06,0.00027824,2]
[425314570,1781694655000,-385.82,0.00027824,2]
[425314578,1781694655000,-5945.57,0.00027872,2]
[425314581,1781694655000,-232.61,0.00027877,2]
[425314580,1781694655000,-188.98085337,0.00027875,2]
[425314579,1781694655000,-5308.13,0.00027872,2]
[425314572,1781694655000,-395.06,0.00027855,7]
[425314614,1781694655000,-1823.98,0.00028194,7]
[425314617,1781694655000,-5945.57,0.00028194,7]
[425314666,1781694655000,-592.27,0.00028726,7]
[425314647,1781694655000,-500.0,0.00028486,60]
[425314645,1781694655000,-169.35247894,0.00028397,7]
[425314649,1781694655000,-500.0,0.00028486,60]
[425314659,1781694655000,-152.0,0.00028586,4]
[425314654,1781694655000,-200.0,0.00028559,2]
[425314660,1781694655000,-1410.34,0.00028677,7]
[425314653,1781694655000,-1599.63,0.00028516,30]
[425314651,1781694655000,-150.0,0.000285,10]
[425314650,1781694655000,-302.49820449,0.0002849,7]
[425314655,1781694655000,-200.0,0.00028559,2]
[425314652,1781694655000,-1823.98,0.00028516,30]
[425314656,1781694655000,-200.0,0.0002856,2]
[425314642,1781694655000,-1823.98,0.00028355,2]
[425314657,1781694655000,-200.0,0.0002856,2]
[425314661,1781694655000,-1823.98,0.00028677,7]
[425314663,1781694655000,-592.5,0.00028726,7]
[425314667,1781694655000,-592.27,0.00028726,7]
[425314662,1781694655000,-1599.63,0.00028677,7]
[425314669,1781694655000,-592.27,0.00028726,7]
[425314664,1781694655000,-592.27,0.00028726,7]
[425314671,1781694655000,-592.27,0.00028726,7]
[425314668,1781694655000,-592.27,0.00028726,7]
[425314665,1781694655000,-592.27,0.00028726,7]
[425314670,1781694655000,-592.27,0.00028726,7]
[425314612,1781694655000,-174.61919142,0.00028136,2]
[425314672,1781694655000,-592.27,0.00028726,7]
[425314658,1781694655000,-200.0,0.00028562,2]
[425314644,1781694655000,-167.00320358,0.00028397,7]
[425314648,1781694655000,-500.0,0.00028486,60]
[425314640,1781694655000,-206.38271163,0.00028285,7]
[425314618,1781694655000,-5945.57,0.00028194,7]
[425314646,1781694655000,-1891.69082893,0.00028402,2]
[425314622,1781694655000,-329.3,0.00028267,2]
[425314623,1781694655000,-344.13469422,0.00028284,7]
[425314616,1781694655000,-1599.63,0.00028194,7]
[425314613,1781694655000,-795.86,0.00028194,7]
[425314620,1781694655000,-1943.3,0.000282,7]
[425314621,1781694655000,-608.48572056,0.0002825,2]
[425314619,1781694655000,-5308.13,0.00028194,7]
[425314625,1781694655000,-346.72197386,0.00028284,7]
[425314634,1781694655000,-232.47914457,0.00028285,7]
[425314636,1781694655000,-368.01344759,0.00028285,7]
[425314635,1781694655000,-211.1129321,0.00028285,7]
[425314624,1781694655000,-329.17724446,0.00028284,7]
[425314615,1781694655000,-796.34,0.00028194,7]
[425314627,1781694655000,-346.56493133,0.00028284,7]
[425314643,1781694655000,-1599.63,0.00028355,2]
[425314638,1781694655000,-363.84752795,0.00028285,7]
[425314641,1781694655000,-224.42460292,0.00028297,7]
[425314639,1781694655000,-237.4914839,0.00028285,7]
[425314631,1781694655000,-353.96758479,0.00028285,7]
[425314629,1781694655000,-347.32483402,0.00028285,7]
[425314637,1781694655000,-311.28547614,0.00028285,2]
[425314628,1781694655000,-440.17246897,0.00028284,7]
[425314630,1781694655000,-344.80533432,0.00028285,7]
[425314626,1781694655000,-317.94834837,0.00028284,7]
[425314633,1781694655000,-232.52584202,0.00028285,7]
[425314632,1781694655000,-207.91672601,0.00028285,7]
[425314707,1781694656000,-2000.0,0.00028903,30]
[425314706,1781694656000,-200.0,0.000289,2]
[425314713,1781694656000,-158.0,0.00028962,30]
[425314710,1781694656000,-2053.0,0.00028903,30]
[425314704,1781694656000,-373.46186693,0.000289,2]
[425314708,1781694656000,-2000.0,0.00028903,30]
[425314703,1781694656000,-200.0,0.000289,2]
[425314701,1781694656000,-374.12,0.000289,2]
[425314717,1781694656000,-157.0,0.00028962,30]
[425314712,1781694656000,-155.0,0.00028962,30]
[425314709,1781694656000,-2000.0,0.00028903,30]
[425314716,1781694656000,-261.0,0.00028962,30]
[425314720,1781694656000,-155.0,0.00028963,30]
[425314714,1781694656000,-237.0,0.00028962,30]
[425314715,1781694656000,-152.0,0.00028962,30]
[425314724,1781694656000,-153.0,0.00028963,30]
[425314723,1781694656000,-153.0,0.00028963,30]
[425314722,1781694656000,-535.0,0.00028963,30]
[425314718,1781694656000,-155.0,0.00028963,30]
[425314721,1781694656000,-485.0,0.00028963,30]
[425314726,1781694656000,-500.0,0.00028972,7]
[425314736,1781694656000,-7999.999999,0.00029,2]
[425314737,1781694656000,-431.00079052,0.00029,2]
[425314725,1781694656000,-40556.52396179,0.0002897,6]
[425314711,1781694656000,-154.0,0.00028962,30]
[425314719,1781694656000,-151.0,0.00028963,30]
[425314702,1781694656000,-43948.15226595,0.000289,2]
[425314732,1781694656000,-11218.76700992,0.00029,2]
[425314698,1781694656000,-242.46731522,0.00028869,2]
[425314673,1781694656000,-592.27,0.00028726,7]
[425314683,1781694656000,-592.27,0.00028726,7]
[425314675,1781694656000,-592.27,0.00028726,7]
[425314678,1781694656000,-592.27,0.00028726,7]
[425314676,1781694656000,-592.27,0.00028726,7]
[425314674,1781694656000,-592.27,0.00028726,7]
[425314680,1781694656000,-592.27,0.00028726,7]
[425314677,1781694656000,-592.27,0.00028726,7]
[425314679,1781694656000,-592.27,0.00028726,7]
[425314682,1781694656000,-592.27,0.00028726,7]
[425314681,1781694656000,-592.27,0.00028726,7]
[425314685,1781694656000,-592.27,0.00028726,7]
[425314700,1781694656000,-1888.31945311,0.0002888,2]
[425314695,1781694656000,-218.56443812,0.00028767,2]
[425314687,1781694656000,-592.27,0.00028726,7]
[425314691,1781694656000,-608.48572056,0.00028731,2]
[425314684,1781694656000,-592.27,0.00028726,7]
[425314692,1781694656000,-150.0,0.00028735,2]
[425314694,1781694656000,-500.0,0.00028767,2]
[425314688,1781694656000,-592.27,0.00028726,7]
[425314686,1781694656000,-592.27,0.00028726,7]
[425314690,1781694656000,-224.23,0.00028729,120]
[425314693,1781694656000,-501.47400689,0.00028766,2]
[425314697,1781694656000,-1359.0,0.00028775,2]
[425314696,1781694656000,-150.0,0.00028775,2]
[425314699,1781694656000,-403480.66094906,0.0002888,60]
[425314689,1781694656000,-592.27,0.00028726,7]
[425314729,1781694656000,-42528.23917717,0.00029,2]
[425314705,1781694656000,-1122.61433308,0.000289,2]
[425314728,1781694656000,-508.0,0.00029,10]
[425314763,1781694656000,-168.11189665,0.00029137,7]
[425314766,1781694656000,-223.6794415,0.00029137,7]
[425314770,1781694656000,-226.89422678,0.00029137,7]
[425314774,1781694656000,-219.40493583,0.00029137,7]
[425314765,1781694656000,-202.62900276,0.00029137,7]
[425314769,1781694656000,-223.34662081,0.00029137,7]
[425314771,1781694656000,-406.37731511,0.00029137,7]
[425314767,1781694656000,-493.7658667,0.00029137,7]
[425314773,1781694656000,-214.85452329,0.00029137,7]
[425314772,1781694656000,-236.16929309,0.00029137,7]
[425314764,1781694656000,-516.20204134,0.00029137,7]
[425314775,1781694656000,-520.08296079,0.00029137,7]
[425314761,1781694656000,-279.83258745,0.0002913,7]
[425314777,1781694656000,-476.92252255,0.00029137,7]
[425314787,1781694656000,-236.01949039,0.00029137,7]
[425314778,1781694656000,-210.49571628,0.00029137,7]
[425314779,1781694656000,-232.37363627,0.00029137,7]
[425314776,1781694656000,-228.60821958,0.00029137,7]
[425314780,1781694656000,-281.77367428,0.00029137,7]
[425314781,1781694656000,-519.84739699,0.00029137,7]
[425314782,1781694656000,-214.25531322,0.00029137,7]
[425314783,1781694656000,-193.2779557,0.00029137,7]
[425314786,1781694656000,-660.25870345,0.00029137,7]
[425314785,1781694656000,-230.68835716,0.00029137,7]
[425314784,1781694656000,-220.8749091,0.00029137,7]
[425314727,1781694656000,-11234.03897222,0.0002899,7]
[425314788,1781694656000,-213.15490276,0.00029137,7]
[425314759,1781694656000,-374.12,0.000291,2]
[425314768,1781694656000,-212.12571429,0.00029137,7]
[425314757,1781694656000,-199.317399,0.00029,7]
[425314731,1781694656000,-200.0,0.00029,2]
[425314760,1781694656000,-306.720931,0.0002913,7]
[425314733,1781694656000,-191.80540898,0.00029,2]
[425314730,1781694656000,-374.12,0.00029,2]
[425314735,1781694656000,-250.01993717,0.00029,2]
[425314734,1781694656000,-188.28168164,0.00029,2]
[425314738,1781694656000,-1503.51031067,0.00029,2]
[425314740,1781694656000,-73441.60024618,0.00029,2]
[425314741,1781694656000,-1252.25327799,0.00029,7]
[425314739,1781694656000,-220.0442745,0.00029,2]
[425314747,1781694656000,-930.02799174,0.00029,2]
[425314745,1781694656000,-941.19669631,0.00029,2]
[425314743,1781694656000,-432.58,0.00029,2]
[425314742,1781694656000,-19031.56033318,0.00029,7]
[425314746,1781694656000,-930.55983482,0.00029,2]
[425314758,1781694656000,-151.0,0.00029,7]
[425314744,1781694656000,-1153.93392615,0.00029,2]
[425314756,1781694656000,-199.317399,0.00029,7]
[425314751,1781694656000,-930.00000017,0.00029,2]
[425314753,1781694656000,-151.0,0.00029,7]
[425314762,1781694656000,-224.48894714,0.00029137,7]
[425314755,1781694656000,-199.317399,0.00029,7]
[425314752,1781694656000,-503.0,0.00029,12]
[425314748,1781694656000,-930.00139959,0.00029,2]
[425314749,1781694656000,-930.00006998,0.00029,2]
[425314750,1781694656000,-930.0000035,0.00029,2]
[425314754,1781694656000,-199.317399,0.00029,7]
[425314830,1781694657000,-205.66495131,0.00029138,2]
[425314837,1781694657000,-229.21602369,0.00029138,7]
[425314826,1781694657000,-225.43118096,0.00029138,2]
[425314833,1781694657000,-235.50510015,0.00029138,7]
[425314817,1781694657000,-214.65472088,0.00029138,7]
[425314825,1781694657000,-206.49069534,0.00029138,7]
[425314824,1781694657000,-249.41930434,0.00029138,2]
[425314823,1781694657000,-226.39764101,0.00029138,2]
[425314821,1781694657000,-466.92821421,0.00029138,2]
[425314829,1781694657000,-545.77129192,0.00029138,7]
[425314819,1781694657000,-218.69658761,0.00029138,7]
[425314828,1781694657000,-234.21723798,0.00029138,7]
[425314843,1781694657000,-163.9,0.00029212,14]
[425314831,1781694657000,-236.10882355,0.00029138,7]
[425314834,1781694657000,-202.33211592,0.00029138,7]
[425314835,1781694657000,-253.35791119,0.00029138,7]
[425314836,1781694657000,-474.9829678,0.00029138,7]
[425314847,1781694657000,-157.157292,0.00029216,7]
[425314839,1781694657000,-247.29295381,0.00029138,7]
[425314838,1781694657000,-230.95331308,0.00029138,7]
[425314848,1781694657000,-396.407254,0.00029216,7]
[425314840,1781694657000,-412.76542326,0.00029138,7]
[425314850,1781694657000,-396.407254,0.00029216,7]
[425314849,1781694657000,-157.157292,0.00029216,7]
[425314845,1781694657000,-157.157292,0.00029216,7]
[425314820,1781694657000,-236.39581071,0.00029138,5]
[425314832,1781694657000,-175.04625116,0.00029138,7]
[425314822,1781694657000,-194.47476297,0.00029138,7]
[425314789,1781694657000,-151.0,0.00029137,7]
[425314815,1781694657000,-213.87711138,0.00029138,5]
[425314790,1781694657000,-520.98725103,0.00029138,7]
[425314842,1781694657000,-448.84920585,0.00029151,7]
[425314801,1781694657000,-218.32322346,0.00029138,7]
[425314791,1781694657000,-517.20800148,0.00029138,7]
[425314793,1781694657000,-168.35468488,0.00029138,7]
[425314792,1781694657000,-255.82508754,0.00029138,7]
[425314800,1781694657000,-220.49200538,0.00029138,7]
[425314794,1781694657000,-231.56361806,0.00029138,7]
[425314799,1781694657000,-249.52945176,0.00029138,7]
[425314797,1781694657000,-203.95916624,0.00029138,7]
[425314796,1781694657000,-530.95137719,0.00029138,7]
[425314795,1781694657000,-218.10456732,0.00029138,7]
[425314798,1781694657000,-415.83345203,0.00029138,7]
[425314803,1781694657000,-150.39539877,0.00029138,7]
[425314805,1781694657000,-202.69981592,0.00029138,7]
[425314813,1781694657000,-216.68686267,0.00029138,7]
[425314806,1781694657000,-245.6203648,0.00029138,7]
[425314804,1781694657000,-465.05168403,0.00029138,7]
[425314802,1781694657000,-249.22485625,0.00029138,7]
[425314809,1781694657000,-225.79632064,0.00029138,7]
[425314810,1781694657000,-232.01294771,0.00029138,7]
[425314807,1781694657000,-464.95828914,0.00029138,7]
[425314808,1781694657000,-225.47550499,0.00029138,7]
[425314812,1781694657000,-233.0234632,0.00029138,7]